Cogmind - Beta 12 @@@ ROGUE MODE // 2023.05.04 @ 16:45:53 Player: MoonDog Result: Self-destructed Performance ------------- Evolutions (1) 500 Regions Visited (2) 400 Robots Destroyed (48) 240 Value Destroyed (1096) 1096 Prototype IDs (1) 20 Alien Tech Used (0) 0 Bonus (120) 120 TOTAL SCORE: 2376 Bonus ------- High Alert Combat Kills 120 Cogmind --------- Core Integrity 233/400 Matter 0/300 Energy 250/250 System Corruption 15% Temperature Cool (9) Movement Treading (240) Ox1 Location -9/Materials Parts ------- > --- POWER (2) -------- Ion Engine > --- PROPULSION (2) --- Light Treads > --- UTILITY (3) ------ Medium Storage Unit > --- WEAPON (2) ------- Light Cannon Rocket Launcher > --- INVENTORY (10) --- Light Treads Large Storage Unit Sensor Array Signal Interpreter Light Armor Plating Light Armor Plating Shield Generator Rocket Launcher Rocket Launcher Peak State ------------ > --- POWER ------------ Ion Engine Heavy Ion Engine > --- PROPULSION ------- Light Treads Light Treads > --- UTILITY ---------- Medium Storage Unit High-capacity Matter Pod Shield Generator > --- WEAPON ----------- Rocket Launcher Rocket Launcher > --- INVENTORY -------- Light Treads Large Storage Unit Sensor Array Signal Interpreter Light Armor Plating Light Armor Plating Shield Generator Light Cannon Rocket Launcher Katana [Rating: 15] Favorites ----------- Power Ion Engine Engine Ion Engine Propulsion Light Treads Treads Light Treads Utility High-capacity Matter Pod Device Shield Generator Storage High-capacity Matter Pod Weapon Assault Rifle Energy Gun EM Pulse Gun Ballistic Gun Assault Rifle Ballistic Cannon Light Cannon Launcher Grenade Launcher Build | -11 -10 -9 ------- Run | Jun Mat Mat Slots Evolved 2 | . . 2 Power 1 | . . 1 Propulsion . | . . . Utility 1 | . . 1 Weapon . | . . . Parts Attached 32 | 9 7 16 Power 4 | 1 . 3 Engine 4 | 1 . 3 Core . | . . . Reactor . | . . . Propulsion 5 | 2 . 3 Treads 5 | 2 . 3 Leg . | . . . Wheel . | . . . Hover . | . . . Flight . | . . . Utility 10 | 3 4 3 Device 2 | . . 2 Storage 8 | 3 4 1 Processor . | . . . Hackware . | . . . Protection . | . . . Artifact . | . . . Weapon 13 | 3 3 7 Energy Gun 1 | . . 1 Energy Cannon . | . . . Ballistic Gun 4 | 3 . 1 Ballistic Cannon 2 | . . 2 Launcher 5 | . 3 2 Special Weapon . | . . . Impact Weapon . | . . . Slashing Weapon 1 | . . 1 Piercing Weapon . | . . . Special Melee Weapon . | . . . Unidentified Prototypes 1 | . . 1 Parts Lost 6 | . . 6 Power . | . . . Propulsion 1 | . . 1 Utility 3 | . . 3 Weapon 2 | . . 2 Highest Loss Streak 4 | . . 4 To Critical Strikes . | . . . Average Slot Usage (%) 98 | . 100 95 Engine 16 | . 14 21 Treads 25 | . 28 21 Device 3 | . . 9 Storage 25 | . 28 21 Energy Gun 1 | . . 3 Ballistic Gun 7 | . 13 . Ballistic Cannon 2 | . . 7 Launcher 12 | . 14 9 Naked Turns . | . . . Heaviest Build 37 | 19 35 37 Greatest Support 40 | 40 40 40 Greatest Overweight (x) 7 | . . 7 Average Overweight (x) . | . . . Largest Inventory Capacity 15 | 8 15 15 Average Capacity 10 | 7 11 10 Most Carried 15 | 2 15 14 Average Carried 8 | 1 9 9 Final Capacity 15 | 8 15 10 Final Carried 15 | 2 15 9 Class Distribution -------------------- 100% | Mutant Dominant Class ---------------- Mutant | -10/Materials Mutant | -9/Materials Resources | -11 -10 -9 ----------- Run | Jun Mat Mat Matter Collected 854 | 384 215 255 Remotely . | . . . Salvage Created 1228 | 163 345 720 Parts 81 | 9 23 49 Haulers Intercepted 1 | . . 1 Recyclers Shooed 3 | . . 3 Parts Field Recycled . | . . . Retrieved Matter . | . . . Parts Self-Destructed . | . . . Prevented . | . . . Kills | -11 -10 -9 ------- Run | Jun Mat Mat Combat Hostiles Destroyed 30 | . 9 21 Guns 1 | . . 1 Cannons 8 | . . 8 AOE 21 | . 9 12 Classes Destroyed 13 | 3 3 7 Worker 4 | 2 . 2 Builder 2 | . . 2 Tunneler 3 | 1 . 2 Hauler 1 | . . 1 Recycler 5 | 1 2 2 Operator 1 | . . 1 Watcher 2 | . 1 1 Swarmer 6 | . 3 3 Grunt 18 | . 6 12 Brawler 1 | . . 1 Duelist 1 | . . 1 Protector 1 | . . 1 Sentry 3 | . . 3 Best Kill Streak 13 | 2 3 13 Combat Bots Only 6 | . 3 6 Max Kills in Single Turn 4 | 1 2 4 Gunslinging . | . . . Exploded 4 | . 2 4 Melee . | . . . Uniques/NPCs Destroyed . | . . . Combat | -11 -10 -9 -------- Run | Jun Mat Mat Damage Taken 1074 | . 195 879 Core 185 | . 18 167 Absorbed by Shields 164 | . . 164 Core Remaining (%) 96 | 100 92 . Volleys Fired 76 | 9 13 54 Largest 2 | 2 2 2 Hottest 75 | 40 60 75 Shots Fired 126 | 18 25 83 Gun 34 | 18 10 6 Cannon 43 | . . 43 Launcher 49 | . 15 34 Special . | . . . Kinetic 72 | 18 10 44 Thermal . | . . . Explosive 49 | . 15 34 Electromagnetic 5 | . . 5 Robot Hit Streak 8 | 3 5 8 Robot Miss Streak 7 | 4 3 7 Penetration Max . | . . . Secondary Targets . | . . . Shots Hit Robots 53 | 9 10 34 Core Hits 80 | 5 21 54 Critical Kills . | . . . Critical Parts Destroyed . | . . . Critical Strikes 3 | . . 3 Blast 3 | . . 3 Melee Attacks . | . . . Impact . | . . . Slashing . | . . . Piercing . | . . . Sneak Attacks . | . . . Combat Hostiles . | . . . Follow-up Attacks . | . . . Damage Inflicted 3249 | 110 778 2361 Guns 216 | 110 68 38 Cannons 449 | . . 449 Explosions 2560 | . 706 1854 Melee . | . . . Ramming 24 | . 4 20 Kinetic 627 | 110 68 449 Thermal . | . . . Explosive 2560 | . 706 1854 Electromagnetic 38 | . . 38 Impact . | . . . Slashing . | . . . Piercing . | . . . Highest Corruption 15 | . . 15 Average Corruption 6 | . . 6 Corruption Purged . | . . . Corruption Blocked . | . . . Effects 4 | . . 4 Message Errors 1 | . . 1 Matter Fused 2 | . . 2 Heat Flow Errors 1 | . . 1 Overload Shots . | . . . Overflow Damage 55 | . 1 54 Projectiles . | . . . Explosions 55 | . 1 54 Melee . | . . . Knockbacks 4 | . . 4 Impact . | . . . Kinetic 4 | . . 4 Secondary . | . . . Self-Inflicted Damage 58 | . 24 34 Shots 7 | . 2 5 Rammed 6 | . 1 5 Targets Rammed 6 | . 1 5 Kicked . | . . . Crushed . | . . . Highest Temperature 136 | . 24 136 Average Temperature 35 | . 11 37 Received Heat Transfer 376 | . 75 301 Siege Activations . | . . . Robots Corrupted . | . . . Combat Hostiles . | . . . Parts Fried . | . . . Impact Corruptions . | . . . Robots Melted . | . . . Combat Hostiles . | . . . Parts Melted . | . . . Heat Transferred . | . . . Parts Sabotaged . | . . . Parts Stolen . | . . . Parts Stripped . | . . . Power Chain Reactions . | . . . Missiles Intercepted . | . . . Alert | -11 -10 -9 ------- Run | Jun Mat Mat Peak Influence 673 | 20 226 673 Initial 94 | . 13 94 Average 218 | 8 77 507 Maximum Alert Level 2 | . 1 2 Low Security (%) 63 | 100 92 7 Level 1 10 | . 7 19 Level 2 25 | . . 73 Level 3 . | . . . Level 4 . | . . . Level 5 . | . . . High Security . | . . . Max Security . | . . . Squads Dispatched 6 | . 3 3 Investigation 2 | . 2 . Extermination . | . . . Reinforcement 3 | . 1 2 Assault 1 | . . 1 Garrison . | . . . Intercept . | . . . Searches Triggered . | . . . Construction Impeded 1 | . . 1 Haulers Reinforced . | . . . Active Scanning Responses . | . . . Cargo Convoy Interrupts . | . . . Stealth | -11 -10 -9 --------- Run | Jun Mat Mat Distress Signals 4 | . . 4 Communications Jammed . | . . . Distress Signals . | . . . Times Spotted 41 | . 12 29 Peak Tracking Total 7 | . 4 7 Tactical Retreats . | . . . Traps | -11 -10 -9 ------- Run | Jun Mat Mat Traps Triggered 4 | . 2 2 Indirectly . | . . . Trap Hack Attempts . | . . . Triggered . | . . . Disarmed . | . . . Reprogrammed . | . . . Reused . | . . . Traps Extracted . | . . . Installed . | . . . Triggered . | . . . Machines | -11 -10 -9 ---------- Run | Jun Mat Mat Machines Disabled 4 | . 1 3 Max in Single Turn 1 | . 1 1 Machines Repaired . | . . . Machines Sabotaged . | . . . Overloaded Fab Kills . | . . . Hacking | -11 -10 -9 --------- Run | Jun Mat Mat Machines Accessed 10 | . 9 1 Terminals 8 | . 7 1 Fabricators . | . . . Repair Stations . | . . . Recycling Units 2 | . 2 . Scanalyzers . | . . . Garrison Access . | . . . Total Hacks 29 | . 23 6 Successful 19 | . 16 3 Failed 10 | . 7 3 Catastrophic . | . . . Database Lockouts . | . . . Manual 22 | . 16 6 Terminals 24 | . 18 6 Fabricators . | . . . Repair Stations . | . . . Recycling Units 5 | . 5 . Scanalyzers . | . . . Garrison Access . | . . . Terminal Hacks 4 | . 4 . Terminal Index 1 | . 1 . Transport Status 1 | . 1 . Registered Components 1 | . 1 . Zone Layout 1 | . 1 . Fabricator Hacks . | . . . Repair Station Hacks . | . . . Recycling Unit Hacks 4 | . 4 . Process 1 | . 1 . Report Inventory 1 | . 1 . Retrieve Matter 2 | . 2 . Scanalyzer . | . . . Garrison Access Hacks . | . . . Unauthorized Hacks 11 | . 8 3 Terminals 11 | . 8 3 Track 2 | . 1 1 Botnet 6 | . 5 1 Operators 3 | . 2 1 Fabricators . | . . . Repair Stations . | . . . Recycling Units . | . . . Scanalyzers . | . . . Garrison Access . | . . . Data Cores Recovered . | . . . Used . | . . . Hacking Detections 9 | . 8 1 Full Trace Events . | . . . Feedback Events . | . . . Feedback Blocked . | . . . Robot Schematics Acquired . | . . . Robots Built . | . . . Authchips . | . . . Time . | . . . Total Robot Build Rating . | . . . Part Schematics Acquired . | . . . Parts Built . | . . . Authchips . | . . . Time . | . . . Total Part Build Rating . | . . . Parts Repaired . | . . . Time . | . . . Parts Recycled . | . . . Recycled Matter 90 | . 90 . Retrieved Matter 90 | . 90 . Retrieved Components . | . . . Parts Scanalyzed . | . . . Part Schematics Acquired . | . . . Parts Damaged . | . . . Bothacking | -11 -10 -9 ------------ Run | Jun Mat Mat Used RIF Installer . | . . . Robots Hacked . | . . . Non-combat . | . . . Combat . | . . . Robot Hacks Applied . | . . . Relay Couplers Released . | . . . Fabnet Peak Effective % . | . . . Robots Rewired . | . . . Allies Hacked . | . . . Hacks Repelled . | . . . Allies | -11 -10 -9 -------- Run | Jun Mat Mat Total Allies . | . . . Largest Group . | . . . Highest-Rated Group . | . . . Highest-Rated Ally . | . . . Total Orders . | . . . Ally Attacks . | . . . Total Damage . | . . . Kills . | . . . Allies Corrupted . | . . . Allies Melted . | . . . Intel | -11 -10 -9 ------- Run | Jun Mat Mat Robot Analysis Total . | . . . Derelict Logs Recovered . | . . . Drone Launches . | . . . Drone Recoveries . | . . . Exploration | -11 -10 -9 ------------- Run | Jun Mat Mat Turns Passed 1412 | 195 723 494 Spaces Moved 711 | 109 410 192 Core 19 | 18 . 1 Treads 692 | 91 410 191 Legs . | . . . Wheels . | . . . Hover . | . . . Flight . | . . . Fastest Speed 50 | 50 160 160 Average Speed 157 | 141 160 162 Slowest Speed 400 | 160 160 400 Overloaded Moves . | . . . Propulsion Burnouts . | . . . Robots Hopped . | . . . Cave-ins Triggered 1 | . . 1 Exploration Rate (%) 33 | 6 72 21 Regions Visited 2 Branch Regions . Pre-discovered Areas . | . . . Known Exits Taken . | . . . Unknown Exits Taken 2 | 1 1 . Scrap Searched . | . . . Spaces Dug . | . . . Terrain Destroyed 247 | . 84 163 Melee . | . . . Projectile 1 | . . 1 AOE 246 | . 84 162 Terrain Rammed . | . . . Walls Destroyed . | . . . Machines Disabled . | . . . Actions | -11 -10 -9 --------- Run | Jun Mat Mat Total 871 | 129 451 291 Wait 12 | . 8 4 Move 709 | 108 409 192 Hop . | . . . Pick Up 15 | 1 9 5 Fast Attach 14 | 8 2 4 Attach 7 | 1 . 6 Detach 5 | 2 1 2 Swap 11 | . 5 6 Drop 16 | . 3 13 Fire 76 | 9 13 54 Melee . | . . . Ram . | . . . Kick . | . . . Crush 6 | . 1 5 Escape Stasis . | . . . Rewire . | . . . Trap . | . . . Miscellaneous . | . . . Route ------- -11/Junkyard -10/Materials (discovered 4 exits: *Mat x3 / [Min]) -9/Materials History --------- Turn | Location | Event 2 | -11/Junkyard | Met Revision 17 2 | -11/Junkyard | Discovered new exit (range 16) 196 | -11/Junkyard | Entered Materials 304 | -10/Materials | Build established: Mutant 427 | -10/Materials | Discovered new exit (range 15) 539 | -10/Materials | Discovered new exit (range 18) 779 | -10/Materials | Discovered new exit (range 8) 903 | -10/Materials | Discovered new exit (range 9) 919 | -10/Materials | Entered another Materials area 919 | -9/Materials | Evolved 2 slots: Power x1, Utility x1 1319 | -9/Materials | First assault squad dispatched 1374 | -9/Materials | Crushed by falling debris 1374 | -9/Materials | System corruption reached 10% 1413 | -9/Materials | Self-destructed Last Messages --------------- 01376_ K-01 Serf collects debris. 01377_ The unstable cave ceiling collapses. 01379_ System corrupted: Heat flow error (+123). 01380_ K-01 Serf collects debris. 01381_ K-01 Serf destroyed. 01381_ Lgt. Treads destroyed. 01381_ System corrupted by crushing effect (+3). 01382_ The unstable cave ceiling collapses. 01382_ I-25 Savior destroyed. 01384_ Knocked back. 01385_ Katana destroyed. 01386_ The unstable cave ceiling collapses. 01391_ B-36 Bruiser destroyed. 01396_ The unstable cave ceiling collapses. 01396_ Wheel crushed. 01401_ Acquired 29 matter. 01403_ System corrupted: Matter fused (-9). 01407_ The unstable cave ceiling collapses. 01409_ R-06 Scavenger collects Welding Torch. 01410_ The unstable cave ceiling collapses. Map ----- +----------------------------------------------------+ | # # ## #????????????????????? | | # # # ## ############?????????? | | # """ """ # = % ^ ?????????? | | # """ """ + [ % ^^ ?????????? | | # """ """ # =! %= =* ?????????? | | # # [ ###### ==%#########????????????? | | # ### ## ## *%###???????????????????? | | # ### ######### ![! #######?????????????? | | ###########?# ###????### = ??????????????o | | ????????????# #??????#%# ???????????????? | | ????????????#/#??????## #???????????????? | | ???????????? ?????? # ###????????????? | | ???????????? ????? r #????????????? | | ???????????# ????? # #????????????? | | ???????????# ???""? # #????????????? | | ???????????? ??""" # #????????????? | | ???????????? ??""" # % % #????????????? | | ???????????? ???" # """ #????????????? | | ???????????? ???? =!g "" #????????????? | | ????????????###?????# [ """ ?????????????? | | ?????????????????????# # #????????????? | | ??????????????######## % # #####????????????? | | ??????????????# = [ #??????????????? | | ??????????????# """ % #??????????????? | | ??????????????# """ *#[ #??????????????? | | ??????????????# """ ; @% #??????????????? | | ??????????????# # #% #??????????????? | | ???############ """ #### #??#######?????? | | ???# ## """ #??## ####??# #?????? | | ???# ## """ #???# ######### #?????? | | ???# ## #???# #?# # #?????? | | ???# #######+####### ### # ] #?????? | | ???###+########### [! #?# +[] #?????? | | ???### ! % #?# ###### # ! #?????? | | ???#"" *=%#?# #????# # [ =#?????? | | ???#"Y """ ##### #?# ########+#########?????? | | ???#"" """ [#???######?# # #????????? | | ??#### """ ############ # """ """ """ #????????? | | ??# / """ """ """ #????????? | | ??# #### """ """ """ #????????? | | ??#####"T"##############??# #????????? | | ??????#####???????????????# ! ! #????????? | | ??????????????????????????###############????????? | | | | | | | | | | | | | | | +----------------------------------------------------+ Best States ------------- Heat Dissipation 28 Energy Generation 15 Energy Capacity 400 Matter Stores 404 Matter Capacity 500 Sight Range 16 Terrain Scan Density 10 Evasion (%) 50 Recoil Reduction 2 Item Schematics ----------------- None Robot Schematics ------------------ None Fabricated ------------ Nothing Alien Tech Used ----------------- None Achievements -------------- None Challenges ------------ None Game ------ Seed SurgePointCompressor Manual? 0 Play Time 00:14:52 Cumulative 123.4 hours Start 2023.05.04 @ 16:14:28 End 2023.05.04 @ 16:45:53 Sessions 1 Manual Loads 0 Difficulty Rogue Special Mode None Game No. 109 Rogue 109 Adventurer 0 Explorer 0 Win Type - Total 1 Types 1/0/0/0/0/0/0/0/0 Lore% 39 Gallery% 54 Achievement% 46 Wizard Run 0 Options --------- ASCII 0 Keyboard 0 Movement Mouse Keybinds 0 Fullscreen 1 Font 18/SmallcapsGlow Map View 76x50 Tactical HUD 1 Map Filters NONE Filters NONE Steam 1 RUN: 32153284-3964-405b-b190-142ddc1512ba